[Event "*** Titled Tuesday 3|2 Blitz"]
[Site "Chess.com"]
[Date "2016.01.05"]
[Round "5"]
[White "nfds"]
[Black "cheese111"]
[Result "0-1"]
[WhiteElo "2330"]
[BlackElo "2261"]
[TimeControl "180+2"]
[EndTime "18:05:50 PST"]
[Termination "cheese111 won on time"]

1. d4 {[%clk 0:03:01.9]} 1... Nf6 {[%clk 0:03:00.1]} 2. Nf3 {[%clk 0:03:02.4]}
2... g6 {[%clk 0:03:00.9]} 3. Nc3 {[%clk 0:03:02.4]} 3... Bg7 {[%clk 0:03:02.2]}
4. e4 {[%clk 0:03:03.5]} 4... d6 {[%clk 0:03:03.5]} 5. Bg5 {[%clk 0:03:01.1]}
5... c6 {[%clk 0:03:01]} 6. Qd2 {[%clk 0:02:58.9]} 6... b5 {[%clk 0:02:57.3]} 7.
Bd3 {[%clk 0:02:52]} 7... h6 {[%clk 0:02:49.1]} 8. Bxf6 {[%clk 0:02:43.1]} 8...
Bxf6 {[%clk 0:02:48.1]} 9. e5 {[%clk 0:02:40.3]} 9... Bg7 {[%clk 0:02:48.5]} 10.
Ne4 {[%clk 0:02:32.8]} 10... O-O {[%clk 0:02:33.2]} 11. Qf4 {[%clk 0:02:20.7]}
11... dxe5 {[%clk 0:02:05]} 12. Nxe5 {[%clk 0:02:18.5]} 12... Be6 {[%clk
0:01:37.9]} 13. h4 {[%clk 0:02:02.2]} 13... Qc8 {[%clk 0:01:19.7]} 14. h5 {[%clk
0:01:58.2]} 14... g5 {[%clk 0:01:12.9]} 15. Qe3 {[%clk 0:01:43.6]} 15... Nd7
{[%clk 0:01:02]} 16. Nf3 {[%clk 0:01:21.1]} 16... Nb6 {[%clk 0:00:56.5]} 17. c3
{[%clk 0:01:04.4]} 17... Nd5 {[%clk 0:00:45.8]} 18. Qd2 {[%clk 0:01:05.7]} 18...
Nf4 {[%clk 0:00:43.9]} 19. Bf1 {[%clk 0:00:59.9]} 19... Bd5 {[%clk 0:00:27]} 20.
Qe3 {[%clk 0:00:55.4]} 20... Qg4 {[%clk 0:00:19.9]} 21. Rh2 {[%clk 0:00:31.8]}
21... Nxg2+ {[%clk 0:00:18.9]} 22. Bxg2 {[%clk 0:00:30.4]} 22... Qxe4 {[%clk
0:00:20.4]} 23. O-O-O {[%clk 0:00:24.7]} 23... Qxe3+ {[%clk 0:00:19.5]} 24. fxe3
{[%clk 0:00:26.6]} 24... Bxa2 {[%clk 0:00:18.9]} 25. e4 {[%clk 0:00:24.6]} 25...
Bb3 {[%clk 0:00:18.3]} 26. Rg1 {[%clk 0:00:23.3]} 26... Rfd8 {[%clk 0:00:18.2]}
27. Nd2 {[%clk 0:00:19.4]} 27... Be6 {[%clk 0:00:17.9]} 28. e5 {[%clk
0:00:17.5]} 28... Rac8 {[%clk 0:00:18.6]} 29. Ne4 {[%clk 0:00:17.5]} 29... Bd5
{[%clk 0:00:13.3]} 30. Nc5 {[%clk 0:00:10.3]} 30... Bxg2 {[%clk 0:00:11.3]} 31.
Rhxg2 {[%clk 0:00:12.2]} 31... Rd5 {[%clk 0:00:10.2]} 32. b4 {[%clk 0:00:10.8]}
32... a5 {[%clk 0:00:09.8]} 33. bxa5 {[%clk 0:00:10.4]} 33... Bxe5 {[%clk
0:00:10.2]} 34. a6 {[%clk 0:00:04.4]} 34... Bf4+ {[%clk 0:00:10]} 35. Kc2 {[%clk
0:00:05.4]} 35... Bd6 {[%clk 0:00:11]} 36. Nd3 {[%clk 0:00:04.3]} 36... Ra8
{[%clk 0:00:11.9]} 37. Ra1 {[%clk 0:00:04.7]} 37... Bc7 {[%clk 0:00:11.7]} 38.
Nb4 {[%clk 0:00:05.2]} 38... Rd6 {[%clk 0:00:12.4]} 39. Re2 {[%clk 0:00:04.5]}
39... e6 {[%clk 0:00:12.4]} 40. Kb3 {[%clk 0:00:03.9]} 40... Bb6 {[%clk
0:00:13.5]} 41. Nd3 {[%clk 0:00:03.4]} 41... Rd7 {[%clk 0:00:13.1]} 42. Nb4
{[%clk 0:00:03.4]} 42... c5 {[%clk 0:00:13]} 43. dxc5 {[%clk 0:00:02.1]} 43...
Bxc5 {[%clk 0:00:14.9]} 44. Nc6 {[%clk 0:00:03.3]} 44... Rd6 {[%clk 0:00:16.1]}
45. Ne5 {[%clk 0:00:02.8]} 45... Rdxa6 {[%clk 0:00:16.8]} 46. Rxa6 {[%clk
0:00:03.4]} 46... Rxa6 {[%clk 0:00:18.7]} 47. Nd7 {[%clk 0:00:04]} 47... Rc6
{[%clk 0:00:16.9]} 48. Nf6+ {[%clk 0:00:02.7]} 48... Kg7 {[%clk 0:00:17.3]} 49.
Ne8+ {[%clk 0:00:03.9]} 49... Kf8 {[%clk 0:00:18.1]} 50. Nf6 {[%clk 0:00:05]}
50... Be7 {[%clk 0:00:17.4]} 51. Ng4 {[%clk 0:00:03.9]} 51... Kg7 {[%clk
0:00:17.5]} 52. Rf2 {[%clk 0:00:05.2]} 52... f5 {[%clk 0:00:18.3]} 53. Ne5
{[%clk 0:00:06.3]} 53... Rc5 {[%clk 0:00:18.4]} 54. Nd3 {[%clk 0:00:05.4]} 54...
Rc7 {[%clk 0:00:17.8]} 55. Re2 {[%clk 0:00:05.8]} 55... Bf6 {[%clk 0:00:18.5]}
56. Kb4 {[%clk 0:00:03.8]} 56... Rxc3 {[%clk 0:00:16.5]} 57. Nc5 {[%clk
0:00:05.3]} 57... Rc4+ {[%clk 0:00:14.2]} 58. Kxb5 {[%clk 0:00:06.4]} 58... Rh4
{[%clk 0:00:13.1]} 59. Nxe6+ {[%clk 0:00:05.6]} 59... Kf7 {[%clk 0:00:14.2]} 60.
Nc7 {[%clk 0:00:05.6]} 60... Rxh5 {[%clk 0:00:15]} 61. Nd5 {[%clk 0:00:06.2]}
61... Rh4 {[%clk 0:00:14.8]} 62. Kc6 {[%clk 0:00:07]} 62... Rd4 {[%clk
0:00:14.3]} 63. Kc5 {[%clk 0:00:07.4]} 63... Rd1 {[%clk 0:00:14.8]} 64. Rh2
{[%clk 0:00:07.6]} 64... Bd4+ {[%clk 0:00:12.1]} 65. Kc4 {[%clk 0:00:06.7]}
65... Bg7 {[%clk 0:00:12.6]} 66. Ne3 {[%clk 0:00:05.1]} 66... Rd4+ {[%clk
0:00:12.7]} 67. Kb5 {[%clk 0:00:05.3]} 67... f4 {[%clk 0:00:12.8]} 68. Ng4
{[%clk 0:00:04.2]} 68... Kg6 {[%clk 0:00:10.5]} 69. Kc5 {[%clk 0:00:05.3]} 69...
Rd1 {[%clk 0:00:10.9]} 70. Ra2 {[%clk 0:00:03.5]} 70... h5 {[%clk 0:00:10.3]}
71. Nh2 {[%clk 0:00:03.2]} 71... g4 {[%clk 0:00:10.3]} 72. Kc4 {[%clk
0:00:04.2]} 72... Kg5 {[%clk 0:00:10.7]} 73. Ra5+ {[%clk 0:00:03.6]} 73... Kh4
{[%clk 0:00:11.4]} 74. Ra7 {[%clk 0:00:03.4]} 74... Bf6 {[%clk 0:00:11.6]} 0-1

[Event "*** Titled Tuesday 3|2 Blitz"]
[Site "Chess.com"]
[Date "2016.01.05"]
[Round "5"]
[White "oskariot"]
[Black "Fibrinogen"]
[Result "0-1"]
[WhiteElo "2321"]
[BlackElo "2205"]
[TimeControl "180+2"]
[EndTime "18:05:59 PST"]
[Termination "Fibrinogen won by resignation"]

1. e4 {[%clk 0:02:45.8]} 1... e5 {[%clk 0:02:56.2]} 2. Nf3 {[%clk 0:02:46.3]}
2... Nc6 {[%clk 0:02:57.6]} 3. Bb5 {[%clk 0:02:46.9]} 3... a6 {[%clk 0:02:59]}
4. Ba4 {[%clk 0:02:47.7]} 4... Nf6 {[%clk 0:02:59.9]} 5. O-O {[%clk 0:02:47.5]}
5... Be7 {[%clk 0:02:59.4]} 6. Re1 {[%clk 0:02:48]} 6... b5 {[%clk 0:03:00.6]}
7. Bb3 {[%clk 0:02:49]} 7... O-O {[%clk 0:03:02.3]} 8. a4 {[%clk 0:02:48.8]}
8... b4 {[%clk 0:03:02.1]} 9. a5 {[%clk 0:02:49.4]} 9... d6 {[%clk 0:02:59.3]}
10. h3 {[%clk 0:02:50.5]} 10... h6 {[%clk 0:02:53.8]} 11. c3 {[%clk 0:02:51.4]}
11... bxc3 {[%clk 0:02:53.6]} 12. dxc3 {[%clk 0:02:52.2]} 12... Be6 {[%clk
0:02:43.6]} 13. Bd5 {[%clk 0:02:45.5]} 13... Qd7 {[%clk 0:02:35.8]} 14. Qd3
{[%clk 0:02:41.9]} 14... Bxd5 {[%clk 0:02:14.4]} 15. exd5 {[%clk 0:02:35.9]}
15... Nb8 {[%clk 0:02:09.7]} 16. Nbd2 {[%clk 0:02:34.7]} 16... c6 {[%clk
0:02:08]} 17. c4 {[%clk 0:01:58.5]} 17... c5 {[%clk 0:02:03.7]} 18. g4 {[%clk
0:01:23.4]} 18... Nh7 {[%clk 0:01:46.7]} 19. Nf1 {[%clk 0:01:18.6]} 19... f5
{[%clk 0:01:38.1]} 20. gxf5 {[%clk 0:01:17.8]} 20... Rxf5 {[%clk 0:01:38.6]} 21.
Ng3 {[%clk 0:01:15]} 21... Rf7 {[%clk 0:01:39.5]} 22. Kg2 {[%clk 0:01:14.8]}
22... Qc8 {[%clk 0:01:35]} 23. Ra3 {[%clk 0:00:33]} 23... Nd7 {[%clk 0:01:29.4]}
24. Ne4 {[%clk 0:00:30.4]} 24... Ndf6 {[%clk 0:01:28.2]} 25. Nxf6+ {[%clk
0:00:29.1]} 25... Nxf6 {[%clk 0:01:28.3]} 26. Nd2 {[%clk 0:00:30.1]} 26... Qd7
{[%clk 0:01:27.8]} 27. Ne4 {[%clk 0:00:30.7]} 27... Raf8 {[%clk 0:01:28.7]} 28.
Re2 {[%clk 0:00:27.6]} 28... Qf5 {[%clk 0:01:08.2]} 29. Nxf6+ {[%clk 0:00:28.3]}
29... Qxf6 {[%clk 0:01:09.4]} 30. Qe4 {[%clk 0:00:25.7]} 30... Bd8 {[%clk
0:01:09.6]} 31. Bd2 {[%clk 0:00:24.7]} 31... Kh8 {[%clk 0:01:04.2]} 32. Rg3
{[%clk 0:00:25.2]} 32... g5 {[%clk 0:01:04.6]} 33. Qg4 {[%clk 0:00:20.5]} 33...
Qg7 {[%clk 0:00:58]} 34. Qh5 {[%clk 0:00:18.8]} 34... Qh7 {[%clk 0:00:49.9]} 35.
b4 {[%clk 0:00:17.1]} 35... e4 {[%clk 0:00:40.9]} 36. bxc5 {[%clk 0:00:16.1]}
36... dxc5 {[%clk 0:00:42.1]} 37. Bc3+ {[%clk 0:00:16.3]} 37... Bf6 {[%clk
0:00:40.8]} 38. Bxf6+ {[%clk 0:00:15]} 38... Rxf6 {[%clk 0:00:42.5]} 39. Qg4
{[%clk 0:00:16.3]} 39... Qf7 {[%clk 0:00:42.8]} 40. Qxe4 {[%clk 0:00:05]} 40...
Rxf2+ {[%clk 0:00:43.4]} 41. Kh1 {[%clk 0:00:05.6]} 41... Rxe2 {[%clk
0:00:35.7]} 42. Qxe2 {[%clk 0:00:06.5]} 42... Qf4 {[%clk 0:00:36.5]} 43. Qd3
{[%clk 0:00:05.2]} 43... Qf2 {[%clk 0:00:29.1]} 44. Qe3 {[%clk 0:00:06.3]} 44...
Qf1+ {[%clk 0:00:26.1]} 45. Rg1 {[%clk 0:00:06.5]} 45... Qxc4 {[%clk 0:00:26.5]}
46. Qe5+ {[%clk 0:00:07.7]} 46... Kh7 {[%clk 0:00:26]} 47. Qe7+ {[%clk
0:00:07.7]} 47... Kg8 {[%clk 0:00:27.3]} 48. Qe6+ {[%clk 0:00:09]} 48... Kg7
{[%clk 0:00:27.4]} 49. Qe5+ {[%clk 0:00:09.7]} 49... Kg8 {[%clk 0:00:24.4]} 50.
Qe6+ {[%clk 0:00:10]} 50... Kg7 {[%clk 0:00:23.1]} 51. Qe7+ {[%clk 0:00:11.1]}
51... Rf7 {[%clk 0:00:22.1]} 52. Qe5+ {[%clk 0:00:12.2]} 52... Kg8 {[%clk
0:00:22]} 53. d6 {[%clk 0:00:13]} 53... Qd3 {[%clk 0:00:17]} 54. Qe8+ {[%clk
0:00:09.7]} 54... Kg7 {[%clk 0:00:17]} 55. Qe5+ {[%clk 0:00:10.8]} 55... Kh7
{[%clk 0:00:18.4]} 56. Kh2 {[%clk 0:00:08.3]} 56... Rd7 {[%clk 0:00:16.7]} 57.
Re1 {[%clk 0:00:03.9]} 57... Qxd6 {[%clk 0:00:15]} 58. Qxd6 {[%clk 0:00:04.5]}
58... Rxd6 {[%clk 0:00:16.7]} 59. Re7+ {[%clk 0:00:05.7]} 59... Kg6 {[%clk
0:00:17.6]} 60. Rc7 {[%clk 0:00:07.6]} 60... Rd2+ {[%clk 0:00:17.9]} 61. Kg3
{[%clk 0:00:08.4]} 61... Rc2 {[%clk 0:00:17.8]} 62. Rc6+ {[%clk 0:00:09.7]}
62... Kh5 {[%clk 0:00:18.7]} 63. Rxa6 {[%clk 0:00:11]} 63... c4 {[%clk
0:00:20.2]} 64. Rc6 {[%clk 0:00:12]} 64... c3 {[%clk 0:00:21.5]} 65. a6 {[%clk
0:00:12.8]} 65... Ra2 {[%clk 0:00:21.3]} 66. Rxc3 {[%clk 0:00:13.7]} 66... Rxa6
{[%clk 0:00:22.4]} 67. Rc4 {[%clk 0:00:15.1]} 67... Rf6 {[%clk 0:00:22.9]} 68.
Kg2 {[%clk 0:00:16.1]} 68... Rf4 {[%clk 0:00:23.6]} 69. Rxf4 {[%clk 0:00:06.8]}
69... gxf4 {[%clk 0:00:24.7]} 70. Kf3 {[%clk 0:00:08.2]} 70... Kg5 {[%clk
0:00:23.8]} 71. Ke4 {[%clk 0:00:09.4]} 71... h5 {[%clk 0:00:25.1]} 72. Kf3
{[%clk 0:00:10]} 72... Kf5 {[%clk 0:00:26.4]} 73. Kf2 {[%clk 0:00:11.1]} 73...
Ke4 {[%clk 0:00:27.8]} 74. Ke2 {[%clk 0:00:12]} 74... f3+ {[%clk 0:00:29.2]} 75.
Kf2 {[%clk 0:00:13.6]} 75... Kf4 {[%clk 0:00:29.4]} 76. Kf1 {[%clk 0:00:13.9]}
76... Kg3 {[%clk 0:00:30.7]} 77. Kg1 {[%clk 0:00:15.4]} 0-1

[Event "*** Titled Tuesday 3|2 Blitz"]
[Site "Chess.com"]
[Date "2016.01.05"]
[Round "5"]
[White "AlexanderL"]
[Black "Silent_Terror"]
[Result "0-1"]
[WhiteElo "2596"]
[BlackElo "2662"]
[TimeControl "180+2"]
[EndTime "18:06:08 PST"]
[Termination "Silent_Terror won on time"]

1. d4 {[%clk 0:03:01.9]} 1... e6 {[%clk 0:03:00.2]} 2. c4 {[%clk 0:03:01.2]}
2... Bb4+ {[%clk 0:02:59.9]} 3. Bd2 {[%clk 0:02:59.7]} 3... Bxd2+ {[%clk
0:03:00.6]} 4. Qxd2 {[%clk 0:03:00.1]} 4... Nf6 {[%clk 0:03:01.1]} 5. Nc3 {[%clk
0:03:00.4]} 5... d5 {[%clk 0:03:02.1]} 6. e3 {[%clk 0:03:01.2]} 6... O-O {[%clk
0:03:03.4]} 7. Nf3 {[%clk 0:03:01.1]} 7... Qe7 {[%clk 0:03:04.6]} 8. a3 {[%clk
0:02:59.4]} 8... Rd8 {[%clk 0:03:05.1]} 9. c5 {[%clk 0:02:57.4]} 9... Nbd7
{[%clk 0:02:57.4]} 10. b4 {[%clk 0:02:12.3]} 10... c6 {[%clk 0:02:57.1]} 11. Qc2
{[%clk 0:01:52.7]} 11... e5 {[%clk 0:02:54.3]} 12. Be2 {[%clk 0:01:53.9]} 12...
e4 {[%clk 0:02:50.8]} 13. Nd2 {[%clk 0:01:54.6]} 13... Nf8 {[%clk 0:02:51.7]}
14. b5 {[%clk 0:01:53.6]} 14... Ng6 {[%clk 0:02:49.7]} 15. Rb1 {[%clk
0:01:49.2]} 15... h5 {[%clk 0:02:43.1]} 16. bxc6 {[%clk 0:01:41.9]} 16... bxc6
{[%clk 0:02:43.7]} 17. Qa4 {[%clk 0:01:43]} 17... Qc7 {[%clk 0:02:41.8]} 18. Nb3
{[%clk 0:01:41.9]} 18... Bd7 {[%clk 0:02:35.1]} 19. Qa5 {[%clk 0:01:39.1]} 19...
Qxa5 {[%clk 0:02:06]} 20. Nxa5 {[%clk 0:01:41]} 20... Rdb8 {[%clk 0:02:07.6]}
21. O-O {[%clk 0:01:31.2]} 21... Ne8 {[%clk 0:01:33.9]} 22. Ba6 {[%clk
0:01:28.2]} 22... Rxb1 {[%clk 0:01:27.4]} 23. Rxb1 {[%clk 0:01:28.4]} 23... Ne7
{[%clk 0:00:51.5]} 24. Rb7 {[%clk 0:01:28.2]} 24... Nf6 {[%clk 0:00:45.7]} 25.
Rc7 {[%clk 0:01:28.2]} 25... Rb8 {[%clk 0:00:33.4]} 26. Bb7 {[%clk 0:01:22.5]}
26... Kf8 {[%clk 0:00:26]} 27. h3 {[%clk 0:00:54]} 27... Ke8 {[%clk 0:00:24.7]}
28. Ba6 {[%clk 0:00:54.7]} 28... Ra8 {[%clk 0:00:21.2]} 29. Nb7 {[%clk
0:00:51.4]} 29... Be6 {[%clk 0:00:14.1]} 30. Na2 {[%clk 0:00:48.2]} 30... Kf8
{[%clk 0:00:13.4]} 31. Nd6 {[%clk 0:00:43]} 31... Ne8 {[%clk 0:00:12.5]} 32.
Nxe8 {[%clk 0:00:42.9]} 32... Kxe8 {[%clk 0:00:14.4]} 33. Nb4 {[%clk 0:00:36.1]}
33... Kd8 {[%clk 0:00:15.5]} 34. Rxe7 {[%clk 0:00:25.2]} 34... Kxe7 {[%clk
0:00:15.7]} 35. Nxc6+ {[%clk 0:00:27.1]} 35... Kd7 {[%clk 0:00:15.9]} 36. Bb7
{[%clk 0:00:27.4]} 36... Rf8 {[%clk 0:00:14.2]} 37. Nb4 {[%clk 0:00:19.6]} 37...
Rb8 {[%clk 0:00:10.2]} 38. c6+ {[%clk 0:00:16.4]} 38... Kd6 {[%clk 0:00:11.5]}
39. Na6 {[%clk 0:00:15.3]} 39... Rf8 {[%clk 0:00:12.5]} 40. h4 {[%clk
0:00:06.9]} 40... Bc8 {[%clk 0:00:11.3]} 41. Kf1 {[%clk 0:00:07.5]} 41... f6
{[%clk 0:00:11.3]} 42. Ke2 {[%clk 0:00:05.9]} 42... g5 {[%clk 0:00:12.8]} 43. g3
{[%clk 0:00:07.3]} 43... Rg8 {[%clk 0:00:12.6]} 44. Kd2 {[%clk 0:00:07.9]} 44...
Be6 {[%clk 0:00:08.6]} 45. Nc5 {[%clk 0:00:04.2]} 45... Bc8 {[%clk 0:00:07.7]}
46. Na6 {[%clk 0:00:05.5]} 46... Be6 {[%clk 0:00:07.9]} 47. Nc5 {[%clk
0:00:06.2]} 47... Bc8 {[%clk 0:00:09.2]} 48. Na6 {[%clk 0:00:07.5]} 48... gxh4
{[%clk 0:00:10.8]} 49. gxh4 {[%clk 0:00:08.1]} 49... f5 {[%clk 0:00:12.6]} 50.
Kc3 {[%clk 0:00:07]} 50... Be6 {[%clk 0:00:13.6]} 51. Nc5 {[%clk 0:00:07.4]}
51... Bc8 {[%clk 0:00:14.6]} 52. Na6 {[%clk 0:00:08.6]} 52... Rf8 {[%clk
0:00:12.3]} 53. Kb4 {[%clk 0:00:07.9]} 53... Be6 {[%clk 0:00:10.7]} 54. Kb5
{[%clk 0:00:08.9]} 54... f4 {[%clk 0:00:08.9]} 55. Nc5 {[%clk 0:00:06.3]} 55...
Bg4 {[%clk 0:00:08.1]} 56. Ka6 {[%clk 0:00:05.7]} 56... fxe3 {[%clk 0:00:05.9]}
57. fxe3 {[%clk 0:00:07.1]} 57... Rf3 {[%clk 0:00:07.8]} 58. Kxa7 {[%clk
0:00:07.4]} 58... Rxe3 {[%clk 0:00:09.3]} 59. Kb8 {[%clk 0:00:06.5]} 59... Rxa3
{[%clk 0:00:09]} 60. c7 {[%clk 0:00:07.5]} 60... e3 {[%clk 0:00:09.7]} 61. Bc8
{[%clk 0:00:05.9]} 61... Bxc8 {[%clk 0:00:05.3]} 62. Kxc8 {[%clk 0:00:07.1]}
62... e2 {[%clk 0:00:07.2]} 63. Kd8 {[%clk 0:00:04.7]} 63... e1=Q {[%clk
0:00:07.2]} 64. Nb7+ {[%clk 0:00:06]} 64... Ke6 {[%clk 0:00:06.1]} 65. c8=Q+
{[%clk 0:00:06.7]} 65... Kf6 {[%clk 0:00:07.8]} 66. Qc6+ {[%clk 0:00:05]} 66...
Qe6 {[%clk 0:00:06.2]} 67. Nd6 {[%clk 0:00:06.3]} 67... Qe7+ {[%clk 0:00:06.7]}
68. Kc8 {[%clk 0:00:07.3]} 68... Qe6+ {[%clk 0:00:07.7]} 69. Kd8 {[%clk
0:00:08.5]} 69... Ra7 {[%clk 0:00:07.7]} 70. Ne8+ {[%clk 0:00:06.3]} 70... Kf7
{[%clk 0:00:05.9]} 71. Nd6+ {[%clk 0:00:05.7]} 71... Kg6 {[%clk 0:00:05.1]} 72.
Qc2+ {[%clk 0:00:03.7]} 72... Kg7 {[%clk 0:00:04.8]} 73. Qg2+ {[%clk 0:00:04.5]}
73... Kh8 {[%clk 0:00:06.1]} 74. Nf7+ {[%clk 0:00:02.2]} 74... Qxf7 {[%clk
0:00:05.3]} 75. Qg7+ {[%clk 0:00:02]} 75... Qxg7 {[%clk 0:00:05.6]} 0-1

[Event "*** Titled Tuesday 3|2 Blitz"]
[Site "Chess.com"]
[Date "2016.01.05"]
[Round "5"]
[White "jcibarra"]
[Black "JusticeBot"]
[Result "1-0"]
[WhiteElo "2515"]
[BlackElo "2475"]
[TimeControl "180+2"]
[EndTime "18:06:21 PST"]
[Termination "jcibarra won by resignation"]

1. e4 {[%clk 0:03:01.9]} 1... e5 {[%clk 0:03:00.9]} 2. Nf3 {[%clk 0:03:03]} 2...
Nc6 {[%clk 0:03:02.6]} 3. Bb5 {[%clk 0:03:04.3]} 3... a6 {[%clk 0:03:03.5]} 4.
Bxc6 {[%clk 0:03:05.6]} 4... dxc6 {[%clk 0:03:04.4]} 5. O-O {[%clk 0:03:07.5]}
5... Bg4 {[%clk 0:03:04.3]} 6. h3 {[%clk 0:03:08.9]} 6... h5 {[%clk 0:03:04.3]}
7. d3 {[%clk 0:03:10.1]} 7... Qf6 {[%clk 0:03:05.9]} 8. Nbd2 {[%clk 0:03:11.5]}
8... Ne7 {[%clk 0:03:05.3]} 9. Re1 {[%clk 0:03:12.1]} 9... Ng6 {[%clk
0:03:06.2]} 10. d4 {[%clk 0:03:11.1]} 10... Nf4 {[%clk 0:03:03]} 11. dxe5 {[%clk
0:03:09.6]} 11... Qg6 {[%clk 0:03:03.8]} 12. Nh4 {[%clk 0:03:11.2]} 12... Bxd1
{[%clk 0:02:44.2]} 13. Nxg6 {[%clk 0:03:09.9]} 13... Nxg6 {[%clk 0:02:46.1]} 14.
Rxd1 {[%clk 0:03:11]} 14... O-O-O {[%clk 0:02:36.2]} 15. Rf1 {[%clk 0:03:10]}
15... Bb4 {[%clk 0:02:09.3]} 16. c3 {[%clk 0:03:05.6]} 16... Bc5 {[%clk
0:02:01.8]} 17. Nc4 {[%clk 0:02:42.1]} 17... Rhe8 {[%clk 0:02:01.5]} 18. Bg5
{[%clk 0:02:38.5]} 18... Rd7 {[%clk 0:01:56.9]} 19. Rad1 {[%clk 0:02:18.3]}
19... Rxd1 {[%clk 0:01:51.4]} 20. Rxd1 {[%clk 0:02:18.4]} 20... b5 {[%clk
0:01:18.5]} 21. Be3 {[%clk 0:02:17.6]} 21... bxc4 {[%clk 0:00:51.3]} 22. Bxc5
{[%clk 0:02:17.6]} 22... Rxe5 {[%clk 0:00:52.9]} 23. Bd4 {[%clk 0:01:42.1]}
23... Rxe4 {[%clk 0:00:53.5]} 24. Kf1 {[%clk 0:01:28.9]} 24... f6 {[%clk
0:00:54.3]} 25. f3 {[%clk 0:01:28.5]} 25... Re8 {[%clk 0:00:51.9]} 26. Bf2
{[%clk 0:01:24.2]} 26... Ne5 {[%clk 0:00:47.6]} 27. Bg3 {[%clk 0:01:15.5]} 27...
Nd3 {[%clk 0:00:25.2]} 28. b3 {[%clk 0:01:16.8]} 28... Rd8 {[%clk 0:00:26.1]}
29. Ke2 {[%clk 0:01:00.1]} 29... cxb3 {[%clk 0:00:25.1]} 30. axb3 {[%clk
0:01:01.2]} 30... Nc5 {[%clk 0:00:24.7]} 31. Rb1 {[%clk 0:00:55.7]} 31... Re8+
{[%clk 0:00:25.2]} 32. Kd2 {[%clk 0:00:55.9]} 32... Rd8+ {[%clk 0:00:26.6]} 33.
Ke2 {[%clk 0:00:57.2]} 33... Kb7 {[%clk 0:00:22.3]} 34. Bf2 {[%clk 0:00:56.6]}
34... Nd3 {[%clk 0:00:17.9]} 35. Be3 {[%clk 0:00:56.3]} 35... Ne5 {[%clk
0:00:18.2]} 36. Ra1 {[%clk 0:00:54.1]} 36... Re8 {[%clk 0:00:18.9]} 37. Kd2
{[%clk 0:00:52.5]} 37... Rd8+ {[%clk 0:00:20.1]} 38. Ke2 {[%clk 0:00:53.7]}
38... Re8 {[%clk 0:00:20.2]} 39. Kd2 {[%clk 0:00:54.8]} 39... Rd8+ {[%clk
0:00:21.5]} 40. Kc2 {[%clk 0:00:52.3]} 40... Ng6 {[%clk 0:00:22.2]} 41. Ra4
{[%clk 0:00:49.8]} 41... Re8 {[%clk 0:00:22.8]} 42. Kd2 {[%clk 0:00:50.3]} 42...
Rd8+ {[%clk 0:00:23.6]} 43. Ke2 {[%clk 0:00:51.8]} 43... Ne7 {[%clk 0:00:21.2]}
44. Rb4+ {[%clk 0:00:48.6]} 44... Kc8 {[%clk 0:00:21.5]} 45. Rc4 {[%clk
0:00:50.1]} 45... Rd5 {[%clk 0:00:20.2]} 46. Ra4 {[%clk 0:00:47.1]} 46... Kb7
{[%clk 0:00:20.8]} 47. c4 {[%clk 0:00:43.5]} 47... Re5 {[%clk 0:00:20.7]} 48.
Kd3 {[%clk 0:00:42.6]} 48... Nf5 {[%clk 0:00:21.5]} 49. Bf2 {[%clk 0:00:43.2]}
49... Re7 {[%clk 0:00:21.2]} 50. Rb4+ {[%clk 0:00:44.4]} 50... Kc8 {[%clk
0:00:21.8]} 51. Ra4 {[%clk 0:00:45.9]} 51... Kb7 {[%clk 0:00:23]} 52. Rb4+
{[%clk 0:00:47.3]} 52... Kc8 {[%clk 0:00:24.3]} 53. Ra4 {[%clk 0:00:48.8]} 53...
Kb7 {[%clk 0:00:25]} 54. Ra5 {[%clk 0:00:47.8]} 54... Rd7+ {[%clk 0:00:25]} 55.
Kc3 {[%clk 0:00:48.2]} 55... g6 {[%clk 0:00:24.4]} 56. g4 {[%clk 0:00:46.4]}
56... hxg4 {[%clk 0:00:25.1]} 57. hxg4 {[%clk 0:00:47.7]} 57... Nd6 {[%clk
0:00:20.7]} 58. Bd4 {[%clk 0:00:43.2]} 58... Rh7 {[%clk 0:00:19.4]} 59. Kd3
{[%clk 0:00:35.3]} 59... Rh3 {[%clk 0:00:18.5]} 60. Ke3 {[%clk 0:00:31.4]} 60...
f5 {[%clk 0:00:19.6]} 61. g5 {[%clk 0:00:31.1]} 61... Rh1 {[%clk 0:00:18.2]} 62.
Ra2 {[%clk 0:00:30.8]} 62... Rb1 {[%clk 0:00:18.2]} 63. Rb2 {[%clk 0:00:31.3]}
63... Re1+ {[%clk 0:00:14.3]} 64. Kf4 {[%clk 0:00:29.4]} 64... Kc8 {[%clk
0:00:13.6]} 65. Rh2 {[%clk 0:00:29.8]} 65... Re6 {[%clk 0:00:07.4]} 66. Rh7
{[%clk 0:00:27.7]} 66... a5 {[%clk 0:00:05.5]} 67. Rg7 {[%clk 0:00:27.3]} 67...
a4 {[%clk 0:00:06.3]} 68. bxa4 {[%clk 0:00:24.6]} 68... Nxc4 {[%clk 0:00:07.3]}
69. Bf6 {[%clk 0:00:23.9]} 69... Nb6 {[%clk 0:00:06.7]} 70. Rxg6 {[%clk
0:00:23.3]} 70... Nxa4 {[%clk 0:00:05.2]} 71. Kxf5 {[%clk 0:00:24.7]} 71... Rd6
{[%clk 0:00:06.7]} 72. Rg8+ {[%clk 0:00:25.2]} 72... Kb7 {[%clk 0:00:07.4]} 73.
g6 {[%clk 0:00:25.1]} 73... Nc5 {[%clk 0:00:07.8]} 74. g7 {[%clk 0:00:25]} 74...
Rd5+ {[%clk 0:00:03.4]} 75. Be5 {[%clk 0:00:24.7]} 75... Nd7 {[%clk 0:00:04.3]}
76. Re8 {[%clk 0:00:24.7]} 76... Nxe5 {[%clk 0:00:05.5]} 77. Rxe5 {[%clk
0:00:25.1]} 77... Rd8 {[%clk 0:00:06.2]} 78. Kg6 {[%clk 0:00:23.9]} 78... Kb6
{[%clk 0:00:07.6]} 79. Kf7 {[%clk 0:00:25]} 79... c5 {[%clk 0:00:08.1]} 80. g8=Q
{[%clk 0:00:25.5]} 80... Rxg8 {[%clk 0:00:09.1]} 81. Kxg8 {[%clk 0:00:27.4]}
81... c4 {[%clk 0:00:11]} 82. f4 {[%clk 0:00:28.6]} 82... c3 {[%clk 0:00:12]}
83. Re3 {[%clk 0:00:29.6]} 83... c2 {[%clk 0:00:11.4]} 84. Rc3 {[%clk
0:00:31.5]} 84... c5 {[%clk 0:00:12.3]} 85. Rxc2 {[%clk 0:00:32.5]} 85... Kc6
{[%clk 0:00:14.2]} 86. f5 {[%clk 0:00:34]} 86... Kd5 {[%clk 0:00:16.1]} 87. f6
{[%clk 0:00:35.8]} 87... Kd4 {[%clk 0:00:17.1]} 88. f7 {[%clk 0:00:37.7]} 88...
c4 {[%clk 0:00:19]} 89. f8=Q {[%clk 0:00:38.4]} 89... Kd3 {[%clk 0:00:20.9]} 1-0